[Event "Titled Tuesday Blitz February 21 Early 2023"]
[White "Zhigalko, Sergei"]
[Black "Mamedov, Edgar"]
[WhiteFideId "13502956"]
[BlackFideId "13739980"]
[WhiteElo "2572"]
[BlackElo "2193"]
[Result "0-1"]
[Round "02"]
[TimeControl "180+2"]
[Date "2023.02.21"]
[WhiteClock "0:00:01"]
[BlackClock "0:00:38"]

1. e4 {[%clk 0:03:00]}  c5 {[%clk 0:02:56]} 2. Nf3 {[%clk 0:03:00]}  e6 {[%clk 0:02:51]} 3. c3 {[%clk 0:03:00]}  Nf6 {[%clk 0:02:44]} 4. e5 {[%clk 0:03:00]}  Nd5 {[%clk 0:02:33]} 5. Bc4 {[%clk 0:02:59]}  Nc6 {[%clk 0:02:29]} 6. O-O {[%clk 0:02:59]}  d6 {[%clk 0:02:27]} 7. d4 {[%clk 0:02:59]}  Be7 {[%clk 0:02:25]} 8. Qe2 {[%clk 0:02:56]}  O-O {[%clk 0:02:23]} 9. Re1 {[%clk 0:02:51]}  cxd4 {[%clk 0:02:17]} 10. cxd4 {[%clk 0:02:51]}  Qb6 {[%clk 0:02:15]} 11. Nc3 {[%clk 0:02:48]}  Nxd4 {[%clk 0:02:10]} 12. Nxd4 {[%clk 0:02:45]}  Qxd4 {[%clk 0:02:09]} 13. Bxd5 {[%clk 0:02:45]}  exd5 {[%clk 0:02:07]} 14. Nb5 {[%clk 0:02:45]}  Qb6 {[%clk 0:02:05]} 15. Be3 {[%clk 0:02:43]}  Qd8 {[%clk 0:02:03]} 16. exd6 {[%clk 0:02:18]}  Bxd6 {[%clk 0:02:01]} 17. Bxa7 {[%clk 0:02:06]}  b6 {[%clk 0:01:57]} 18. Nxd6 {[%clk 0:01:05]}  Qxd6 {[%clk 0:01:54]} 19. Qe7 {[%clk 0:01:06]}  Qg6 {[%clk 0:01:46]} 20. Re3 {[%clk 0:00:34]}  Bf5 {[%clk 0:01:30]} 21. Rc1 {[%clk 0:00:26]}  d4 {[%clk 0:01:19]} 22. Rg3 {[%clk 0:00:25]}  Qh6 {[%clk 0:01:16]} 23. f4 {[%clk 0:00:08]}  Rfe8 {[%clk 0:01:02]} 24. Qb7 {[%clk 0:00:04]}  d3 {[%clk 0:00:51]} 25. Bxb6 {[%clk 0:00:01]}  Rab8 {[%clk 0:00:47]} 26. Qc7 {[%clk 0:00:01]}  Qxb6+ {[%clk 0:00:45]} 27. Qxb6 {[%clk 0:00:01]}  Rxb6 {[%clk 0:00:45]} 28. b3 {[%clk 0:00:01]}  Rbe6 {[%clk 0:00:38]} 0-1


[Site "https://www.chess.com"]

[Event "Titled Tuesday Blitz February 21 Early 2023"]
[White "gshwbedhkhd"]
[Black "Bharath Subramaniyam H"]
[BlackFideId "46634827"]
[WhiteElo "2556"]
[BlackElo "2517"]
[Result "0-1"]
[Round "02"]
[TimeControl "180+2"]
[Date "2023.02.21"]
[WhiteClock "0:00:02"]
[BlackClock "0:00:12"]

1. e4 {[%clk 0:03:00]}  c5 {[%clk 0:02:59]} 2. Nf3 {[%clk 0:03:00]}  d6 {[%clk 0:02:59]} 3. d4 {[%clk 0:03:00]}  cxd4 {[%clk 0:02:59]} 4. Nxd4 {[%clk 0:03:01]}  Nf6 {[%clk 0:03:00]} 5. Nc3 {[%clk 0:03:01]}  a6 {[%clk 0:03:00]} 6. f4 {[%clk 0:03:01]}  e5 {[%clk 0:02:58]} 7. Nb3 {[%clk 0:03:01]}  Be7 {[%clk 0:02:57]} 8. Be2 {[%clk 0:02:59]}  Nc6 {[%clk 0:02:56]} 9. O-O {[%clk 0:02:57]}  O-O {[%clk 0:02:56]} 10. Be3 {[%clk 0:02:56]}  b5 {[%clk 0:02:53]} 11. a4 {[%clk 0:02:53]}  b4 {[%clk 0:02:48]} 12. Nd5 {[%clk 0:02:53]}  Be6 {[%clk 0:02:47]} 13. a5 {[%clk 0:02:09]}  exf4 {[%clk 0:02:34]} 14. Bxf4 {[%clk 0:02:04]}  Nxe4 {[%clk 0:02:05]} 15. Bf3 {[%clk 0:01:56]}  f5 {[%clk 0:02:04]} 16. Nb6 {[%clk 0:01:27]}  Ra7 {[%clk 0:01:59]} 17. Nd4 {[%clk 0:01:27]}  Nxd4 {[%clk 0:01:54]} 18. Qxd4 {[%clk 0:01:28]}  d5 {[%clk 0:01:55]} 19. Qe5 {[%clk 0:01:06]}  Bc5+ {[%clk 0:01:50]} 20. Kh1 {[%clk 0:01:06]}  Re8 {[%clk 0:01:38]} 21. Bxe4 {[%clk 0:01:05]}  fxe4 {[%clk 0:01:35]} 22. Rad1 {[%clk 0:01:03]}  Bf7 {[%clk 0:01:28]} 23. Qf5 {[%clk 0:00:51]}  d4 {[%clk 0:01:11]} 24. Qxc5 {[%clk 0:00:50]}  e3 {[%clk 0:01:01]} 25. Rxd4 {[%clk 0:00:43]}  e2 {[%clk 0:01:00]} 26. Re1 {[%clk 0:00:40]}  Qf6 {[%clk 0:01:00]} 27. Nd5 {[%clk 0:00:34]}  Bxd5 {[%clk 0:00:39]} 28. Qxd5+ {[%clk 0:00:34]}  Rf7 {[%clk 0:00:32]} 29. h3 {[%clk 0:00:20]}  g5 {[%clk 0:00:30]} 30. Bg3 {[%clk 0:00:16]}  Kg7 {[%clk 0:00:20]} 31. Kh2 {[%clk 0:00:16]}  Rfe7 {[%clk 0:00:19]} 32. Rg4 {[%clk 0:00:13]}  h6 {[%clk 0:00:19]} 33. Rxb4 {[%clk 0:00:08]}  h5 {[%clk 0:00:20]} 34. h4 {[%clk 0:00:07]}  gxh4 {[%clk 0:00:15]} 35. Rxh4 {[%clk 0:00:08]}  Re5 {[%clk 0:00:14]} 36. Qd7+ {[%clk 0:00:07]}  R5e7 {[%clk 0:00:13]} 37. Qd3 {[%clk 0:00:07]}  Re3 {[%clk 0:00:13]} 38. Qd5 {[%clk 0:00:05]}  Rxg3 {[%clk 0:00:12]} 39. Kxg3 {[%clk 0:00:04]}  Re3+ {[%clk 0:00:12]} 40. Qf3 {[%clk 0:00:02]}  Rxf3+ {[%clk 0:00:13]} 41. gxf3 {[%clk 0:00:03]}  Qg5+ {[%clk 0:00:13]} 42. Kh3 {[%clk 0:00:03]}  Qd2 {[%clk 0:00:14]} 43. Rg1+ {[%clk 0:00:04]}  Kf6 {[%clk 0:00:12]} 44. Re4 {[%clk 0:00:05]}  Qxc2 {[%clk 0:00:13]} 45. Rg2 {[%clk 0:00:03]}  Qxe4 {[%clk 0:00:12]} 46. fxe4 {[%clk 0:00:02]}  e1=Q {[%clk 0:00:12]} 0-1


[Site "https://www.chess.com"]

[Event "Titled Tuesday Blitz February 21 Early 2023"]
[White "Ismagilov, Damir"]
[Black "Chigaev, Maksim"]
[WhiteFideId "34199982"]
[BlackFideId "4108116"]
[WhiteElo "2156"]
[BlackElo "2628"]
[Result "0-1"]
[Round "02"]
[TimeControl "180+2"]
[Date "2023.02.21"]
[WhiteClock "0:01:06"]
[BlackClock "0:01:44"]

1. Nf3 {[%clk 0:03:00]}  Nf6 {[%clk 0:02:58]} 2. g3 {[%clk 0:03:01]}  g6 {[%clk 0:02:58]} 3. Bg2 {[%clk 0:03:01]}  Bg7 {[%clk 0:02:58]} 4. O-O {[%clk 0:03:02]}  O-O {[%clk 0:02:59]} 5. c4 {[%clk 0:03:02]}  c5 {[%clk 0:02:57]} 6. Nc3 {[%clk 0:03:03]}  Nc6 {[%clk 0:02:57]} 7. b3 {[%clk 0:03:00]}  d6 {[%clk 0:02:43]} 8. Bb2 {[%clk 0:03:00]}  e5 {[%clk 0:02:43]} 9. e3 {[%clk 0:02:56]}  h6 {[%clk 0:02:39]} 10. d4 {[%clk 0:02:52]}  exd4 {[%clk 0:02:34]} 11. exd4 {[%clk 0:02:53]}  Bg4 {[%clk 0:02:34]} 12. dxc5 {[%clk 0:02:41]}  dxc5 {[%clk 0:02:35]} 13. h3 {[%clk 0:02:39]}  Bf5 {[%clk 0:02:35]} 14. Nb5 {[%clk 0:02:35]}  Qb6 {[%clk 0:02:22]} 15. Qc1 {[%clk 0:02:26]}  Rad8 {[%clk 0:02:18]} 16. Ne5 {[%clk 0:02:11]}  Nb4 {[%clk 0:02:02]} 17. a3 {[%clk 0:01:37]}  Nc2 {[%clk 0:01:56]} 18. Ra2 {[%clk 0:01:37]}  Nd4 {[%clk 0:01:46]} 19. Nxd4 {[%clk 0:01:24]}  cxd4 {[%clk 0:01:47]} 20. c5 {[%clk 0:01:19]}  Qxb3 {[%clk 0:01:46]} 21. Qa1 {[%clk 0:01:15]}  Be6 {[%clk 0:01:44]} 22. Bxb7 {[%clk 0:01:06]} 0-1


[Site "https://www.chess.com"]

[Event "Titled Tuesday Blitz February 21 Early 2023"]
[White "Ter-Sahakyan, Samvel"]
[Black "Manukyan, Sargis A."]
[WhiteFideId "13302531"]
[BlackFideId "13303970"]
[WhiteElo "2617"]
[BlackElo "2158"]
[Result "1-0"]
[Round "02"]
[TimeControl "180+2"]
[Date "2023.02.21"]
[WhiteClock "0:01:32"]
[BlackClock "0:00:13"]

1. d4 {[%clk 0:03:00]}  d5 {[%clk 0:02:59]} 2. c4 {[%clk 0:03:00]}  e6 {[%clk 0:02:59]} 3. Nc3 {[%clk 0:02:59]}  Nf6 {[%clk 0:02:59]} 4. Nf3 {[%clk 0:02:59]}  Be7 {[%clk 0:02:57]} 5. Bf4 {[%clk 0:02:54]}  c5 {[%clk 0:02:53]} 6. dxc5 {[%clk 0:02:54]}  Na6 {[%clk 0:02:51]} 7. e3 {[%clk 0:02:47]}  Nxc5 {[%clk 0:02:51]} 8. cxd5 {[%clk 0:02:47]}  Nxd5 {[%clk 0:02:50]} 9. Nxd5 {[%clk 0:02:45]}  exd5 {[%clk 0:02:44]} 10. Bb5+ {[%clk 0:02:44]}  Bd7 {[%clk 0:02:44]} 11. Bxd7+ {[%clk 0:02:43]}  Qxd7 {[%clk 0:02:45]} 12. O-O {[%clk 0:02:43]}  O-O {[%clk 0:02:38]} 13. Be5 {[%clk 0:02:44]}  f6 {[%clk 0:02:36]} 14. Bd4 {[%clk 0:02:41]}  Rfd8 {[%clk 0:02:27]} 15. Qe2 {[%clk 0:02:40]}  Rac8 {[%clk 0:02:27]} 16. Rfd1 {[%clk 0:02:41]}  a6 {[%clk 0:02:25]} 17. Bxc5 {[%clk 0:02:41]}  Bxc5 {[%clk 0:02:23]} 18. Rd3 {[%clk 0:02:40]}  Qe6 {[%clk 0:02:14]} 19. Qd1 {[%clk 0:02:33]}  Bb6 {[%clk 0:01:53]} 20. h3 {[%clk 0:02:31]}  Rd7 {[%clk 0:01:49]} 21. Rc1 {[%clk 0:02:29]}  Rcd8 {[%clk 0:01:45]} 22. Rc2 {[%clk 0:02:25]}  d4 {[%clk 0:01:36]} 23. exd4 {[%clk 0:02:05]}  Qxa2 {[%clk 0:01:23]} 24. b3 {[%clk 0:02:01]}  Qa3 {[%clk 0:01:19]} 25. Re2 {[%clk 0:01:56]}  Qb4 {[%clk 0:01:17]} 26. Re4 {[%clk 0:01:48]}  Qd6 {[%clk 0:01:12]} 27. Qe2 {[%clk 0:01:47]}  Kf7 {[%clk 0:00:59]} 28. Rde3 {[%clk 0:01:44]}  Qa3 {[%clk 0:00:46]} 29. Qc4+ {[%clk 0:01:37]}  Kf8 {[%clk 0:00:38]} 30. Ng5 {[%clk 0:01:35]}  g6 {[%clk 0:00:13]} 31. Ne6+ {[%clk 0:01:32]} 1-0


[Site "https://www.chess.com"]

[Event "Titled Tuesday Blitz February 21 Early 2023"]
[White "Danielyan, Vahe"]
[Black "Sanal, Vahap"]
[WhiteFideId "13304828"]
[BlackFideId "6300545"]
[WhiteElo "2346"]
[BlackElo "2600"]
[Result "1-0"]
[Round "02"]
[TimeControl "180+2"]
[Date "2023.02.21"]
[WhiteClock "0:00:07"]
[BlackClock "0:00:08"]

1. d4 {[%clk 0:03:00]}  Nf6 {[%clk 0:02:57]} 2. c4 {[%clk 0:03:00]}  e6 {[%clk 0:02:57]} 3. Nc3 {[%clk 0:02:59]}  Bb4 {[%clk 0:02:54]} 4. Bf4 {[%clk 0:02:58]}  O-O {[%clk 0:02:52]} 5. Qb3 {[%clk 0:02:56]}  a5 {[%clk 0:02:43]} 6. e3 {[%clk 0:02:49]}  d6 {[%clk 0:02:39]} 7. a3 {[%clk 0:02:41]}  Bxc3+ {[%clk 0:02:37]} 8. Qxc3 {[%clk 0:02:42]}  b6 {[%clk 0:02:31]} 9. Bd3 {[%clk 0:02:38]}  Bb7 {[%clk 0:02:31]} 10. f3 {[%clk 0:02:34]}  Re8 {[%clk 0:02:16]} 11. Ne2 {[%clk 0:02:33]}  Nbd7 {[%clk 0:02:12]} 12. Rd1 {[%clk 0:02:27]}  e5 {[%clk 0:02:12]} 13. dxe5 {[%clk 0:02:25]}  dxe5 {[%clk 0:02:00]} 14. Bg5 {[%clk 0:02:04]}  h6 {[%clk 0:02:00]} 15. Bh4 {[%clk 0:02:04]}  Qe7 {[%clk 0:01:59]} 16. O-O {[%clk 0:01:53]}  e4 {[%clk 0:01:55]} 17. fxe4 {[%clk 0:01:44]}  Bxe4 {[%clk 0:01:50]} 18. Nd4 {[%clk 0:01:44]}  Bxd3 {[%clk 0:01:30]} 19. Rxd3 {[%clk 0:01:42]}  Qe4 {[%clk 0:01:15]} 20. Nf5 {[%clk 0:01:23]}  Qe5 {[%clk 0:00:37]} 21. Qd2 {[%clk 0:00:33]}  Qe6 {[%clk 0:00:28]} 22. Rd4 {[%clk 0:00:24]}  Kh7 {[%clk 0:00:27]} 23. Rdf4 {[%clk 0:00:15]}  g5 {[%clk 0:00:18]} 24. Qc2 {[%clk 0:00:11]}  Ne4 {[%clk 0:00:11]} 25. Nd4 {[%clk 0:00:10]}  Qg6 {[%clk 0:00:07]} 26. Rxf7+ {[%clk 0:00:10]}  Kg8 {[%clk 0:00:07]} 27. Rxd7 {[%clk 0:00:07]}  gxh4 {[%clk 0:00:08]} 28. Rff7 {[%clk 0:00:05]}  Qg5 {[%clk 0:00:06]} 29. Nf5 {[%clk 0:00:03]}  Rf8 {[%clk 0:00:02]} 30. Rg7+ {[%clk 0:00:03]}  Kh8 {[%clk 0:00:02]} 31. Rh7+ {[%clk 0:00:04]}  Kg8 {[%clk 0:00:02]} 32. Rdg7+ {[%clk 0:00:04]}  Qxg7 {[%clk 0:00:02]} 33. Rxg7+ {[%clk 0:00:05]}  Kh8 {[%clk 0:00:02]} 34. Qxe4 {[%clk 0:00:06]}  Rxf5 {[%clk 0:00:03]} 35. Qxf5 {[%clk 0:00:06]}  Kxg7 {[%clk 0:00:04]} 36. Qe5+ {[%clk 0:00:07]}  Kg6 {[%clk 0:00:05]} 37. Qxc7 {[%clk 0:00:07]}  Rf8 {[%clk 0:00:06]} 38. Qxb6+ {[%clk 0:00:07]}  Rf6 {[%clk 0:00:06]} 39. Qxf6+ {[%clk 0:00:06]}  Kxf6 {[%clk 0:00:07]} 40. b4 {[%clk 0:00:07]}  Ke5 {[%clk 0:00:08]} 41. bxa5 {[%clk 0:00:07]} 1-0


[Site "https://www.chess.com"]

[Event "Titled Tuesday Blitz February 21 Early 2023"]
[White "Migot, Tangi"]
[Black "Narayanan, Srinath"]
[WhiteFideId "662445"]
[BlackFideId "5018420"]
[WhiteElo "2373"]
[BlackElo "2559"]
[Result "1/2-1/2"]
[Round "02"]
[TimeControl "180+2"]
[Date "2023.02.21"]
[WhiteClock "0:00:20"]
[BlackClock "0:00:03"]

1. Nf3 {[%clk 0:03:00]}  d5 {[%clk 0:02:58]} 2. e3 {[%clk 0:03:01]}  Nf6 {[%clk 0:02:57]} 3. c4 {[%clk 0:03:02]}  c6 {[%clk 0:02:55]} 4. Qc2 {[%clk 0:03:00]}  g6 {[%clk 0:02:54]} 5. d4 {[%clk 0:02:58]}  Bg7 {[%clk 0:02:54]} 6. Nc3 {[%clk 0:02:58]}  O-O {[%clk 0:02:54]} 7. Bd2 {[%clk 0:02:58]}  Na6 {[%clk 0:02:49]} 8. cxd5 {[%clk 0:02:55]}  Nb4 {[%clk 0:02:48]} 9. Qb3 {[%clk 0:02:55]}  Nbxd5 {[%clk 0:02:46]} 10. h3 {[%clk 0:02:46]}  Nxc3 {[%clk 0:02:36]} 11. Bxc3 {[%clk 0:02:43]}  Ne4 {[%clk 0:02:36]} 12. Be2 {[%clk 0:02:38]}  c5 {[%clk 0:02:24]} 13. O-O {[%clk 0:02:33]}  Nxc3 {[%clk 0:02:05]} 14. bxc3 {[%clk 0:02:33]}  b6 {[%clk 0:02:05]} 15. a4 {[%clk 0:02:32]}  Qc7 {[%clk 0:02:01]} 16. a5 {[%clk 0:02:30]}  Bb7 {[%clk 0:01:55]} 17. Rfb1 {[%clk 0:02:14]}  Be4 {[%clk 0:01:27]} 18. axb6 {[%clk 0:01:59]}  axb6 {[%clk 0:01:27]} 19. Rxa8 {[%clk 0:01:58]}  Rxa8 {[%clk 0:01:28]} 20. Qxb6 {[%clk 0:01:54]}  Qxb6 {[%clk 0:01:29]} 21. Rxb6 {[%clk 0:01:54]}  cxd4 {[%clk 0:01:30]} 22. cxd4 {[%clk 0:01:50]}  Ra1+ {[%clk 0:01:29]} 23. Kh2 {[%clk 0:01:50]}  Bf6 {[%clk 0:01:20]} 24. Rb2 {[%clk 0:01:40]}  Kg7 {[%clk 0:01:19]} 25. Nd2 {[%clk 0:01:34]}  Bf5 {[%clk 0:01:15]} 26. Bg4 {[%clk 0:01:26]}  Bd3 {[%clk 0:01:13]} 27. Bf3 {[%clk 0:01:19]}  e5 {[%clk 0:01:09]} 28. Ne4 {[%clk 0:01:12]}  Bxe4 {[%clk 0:00:57]} 29. Bxe4 {[%clk 0:01:13]}  exd4 {[%clk 0:00:58]} 30. exd4 {[%clk 0:01:13]}  Bxd4 {[%clk 0:00:58]} 31. Rd2 {[%clk 0:01:12]}  Ra4 {[%clk 0:00:52]} 32. Bf3 {[%clk 0:01:08]}  h5 {[%clk 0:00:50]} 33. g3 {[%clk 0:00:50]}  h4 {[%clk 0:00:50]} 34. gxh4 {[%clk 0:00:48]}  Be5+ {[%clk 0:00:46]} 35. Kg2 {[%clk 0:00:48]}  Rxh4 {[%clk 0:00:47]} 36. Re2 {[%clk 0:00:47]}  Bd6 {[%clk 0:00:42]} 37. Re4 {[%clk 0:00:45]}  Rh8 {[%clk 0:00:41]} 38. Rd4 {[%clk 0:00:45]}  Be7 {[%clk 0:00:37]} 39. Rd7 {[%clk 0:00:43]}  Kf6 {[%clk 0:00:37]} 40. Rd4 {[%clk 0:00:40]}  Rb8 {[%clk 0:00:34]} 41. Rf4+ {[%clk 0:00:32]}  Kg7 {[%clk 0:00:33]} 42. Re4 {[%clk 0:00:26]}  Bf6 {[%clk 0:00:32]} 43. Re2 {[%clk 0:00:26]}  Rb4 {[%clk 0:00:31]} 44. Rc2 {[%clk 0:00:26]}  Bd4 {[%clk 0:00:29]} 45. Re2 {[%clk 0:00:26]}  f5 {[%clk 0:00:29]} 46. Rc2 {[%clk 0:00:26]}  Kf6 {[%clk 0:00:30]} 47. Rc6+ {[%clk 0:00:24]}  Kg7 {[%clk 0:00:28]} 48. Rc2 {[%clk 0:00:25]}  Bb6 {[%clk 0:00:20]} 49. Re2 {[%clk 0:00:24]}  Kf6 {[%clk 0:00:20]} 50. Rc2 {[%clk 0:00:25]}  Ke5 {[%clk 0:00:20]} 51. Re2+ {[%clk 0:00:25]}  Kf4 {[%clk 0:00:20]} 52. Rc2 {[%clk 0:00:25]}  g5 {[%clk 0:00:18]} 53. Be2 {[%clk 0:00:25]}  Ke5 {[%clk 0:00:17]} 54. Bd3 {[%clk 0:00:25]}  Rf4 {[%clk 0:00:14]} 55. Rb2 {[%clk 0:00:23]}  Bd4 {[%clk 0:00:13]} 56. Re2+ {[%clk 0:00:21]}  Kd6 {[%clk 0:00:13]} 57. Bc2 {[%clk 0:00:22]}  Kc5 {[%clk 0:00:12]} 58. Bd1 {[%clk 0:00:22]}  Kc4 {[%clk 0:00:11]} 59. Rc2+ {[%clk 0:00:21]}  Kd3 {[%clk 0:00:11]} 60. Ra2 {[%clk 0:00:22]}  Bc5 {[%clk 0:00:06]} 61. Be2+ {[%clk 0:00:21]}  Kc3 {[%clk 0:00:06]} 62. Bf3 {[%clk 0:00:20]}  Bd4 {[%clk 0:00:03]} 63. Bd5 {[%clk 0:00:20]} 1/2-1/2


[Site "https://www.chess.com"]

[Event "Titled Tuesday Blitz February 21 Early 2023"]
[White "Ibarra Jerez, Jose Carlos"]
[Black "Fisher_TheGalactic"]
[WhiteFideId "2226332"]
[WhiteElo "2563"]
[BlackElo "2535"]
[Result "1-0"]
[Round "02"]
[TimeControl "180+2"]
[Date "2023.02.21"]
[WhiteClock "0:00:35"]
[BlackClock "0:00:01"]

1. e4 {[%clk 0:03:00]}  b6 {[%clk 0:02:59]} 2. d4 {[%clk 0:03:00]}  Bb7 {[%clk 0:03:00]} 3. Bd3 {[%clk 0:03:01]}  Nf6 {[%clk 0:03:00]} 4. Qe2 {[%clk 0:03:00]}  e6 {[%clk 0:03:00]} 5. Nf3 {[%clk 0:03:00]}  d5 {[%clk 0:03:00]} 6. e5 {[%clk 0:03:00]}  Nfd7 {[%clk 0:02:58]} 7. Ng5 {[%clk 0:03:00]}  g6 {[%clk 0:02:43]} 8. h4 {[%clk 0:02:49]}  Nc6 {[%clk 0:02:40]} 9. c3 {[%clk 0:02:49]}  Qe7 {[%clk 0:02:39]} 10. h5 {[%clk 0:02:44]}  Bg7 {[%clk 0:02:36]} 11. Nf3 {[%clk 0:02:01]}  O-O-O {[%clk 0:02:08]} 12. h6 {[%clk 0:01:51]}  Bf8 {[%clk 0:02:08]} 13. Bg5 {[%clk 0:01:52]}  f6 {[%clk 0:02:08]} 14. exf6 {[%clk 0:01:52]}  Qf7 {[%clk 0:02:02]} 15. Bb5 {[%clk 0:01:48]}  Bd6 {[%clk 0:01:57]} 16. Bxc6 {[%clk 0:01:43]}  Bxc6 {[%clk 0:01:58]} 17. Ne5 {[%clk 0:01:43]}  Bxe5 {[%clk 0:01:57]} 18. dxe5 {[%clk 0:01:44]}  Kb7 {[%clk 0:01:57]} 19. b4 {[%clk 0:01:42]}  Ba4 {[%clk 0:01:52]} 20. O-O {[%clk 0:01:37]}  Nb8 {[%clk 0:01:45]} 21. f4 {[%clk 0:01:36]}  d4 {[%clk 0:01:43]} 22. b5 {[%clk 0:01:29]}  Qd7 {[%clk 0:01:35]} 23. c4 {[%clk 0:01:26]}  a6 {[%clk 0:01:22]} 24. Na3 {[%clk 0:01:21]}  c6 {[%clk 0:01:17]} 25. Rab1 {[%clk 0:01:09]}  d3 {[%clk 0:01:10]} 26. Qd2 {[%clk 0:01:01]}  c5 {[%clk 0:00:30]} 27. Bh4 {[%clk 0:00:57]}  Rhf8 {[%clk 0:00:21]} 28. Bf2 {[%clk 0:00:51]}  a5 {[%clk 0:00:20]} 29. Rbe1 {[%clk 0:00:46]}  Qc8 {[%clk 0:00:06]} 30. Nb1 {[%clk 0:00:46]}  Bc2 {[%clk 0:00:06]} 31. Nc3 {[%clk 0:00:46]}  Rd7 {[%clk 0:00:06]} 32. Ne4 {[%clk 0:00:46]}  Qc7 {[%clk 0:00:04]} 33. Kh2 {[%clk 0:00:41]}  Rfd8 {[%clk 0:00:03]} 34. g4 {[%clk 0:00:39]}  Ka7 {[%clk 0:00:01]} 35. Be3 {[%clk 0:00:37]}  Rf7 {[%clk 0:00:01]} 36. Qg2 {[%clk 0:00:35]}  Nd7 {[%clk 0:00:01]} 37. Bd2 {[%clk 0:00:35]} 1-0


[Site "https://www.chess.com"]

[Event "Titled Tuesday Blitz February 21 Early 2023"]
[White "Principe, Gerson"]
[Black "Bacrot, Etienne"]
[WhiteFideId "3804550"]
[BlackFideId "605506"]
[WhiteElo "2226"]
[BlackElo "2667"]
[Result "0-1"]
[Round "02"]
[TimeControl "180+2"]
[Date "2023.02.21"]
[WhiteClock "0:00:01"]
[BlackClock "0:01:14"]

1. Nf3 {[%clk 0:02:59]}  d5 {[%clk 0:02:58]} 2. e3 {[%clk 0:02:58]}  Nf6 {[%clk 0:02:58]} 3. b3 {[%clk 0:02:58]}  g6 {[%clk 0:02:57]} 4. Bb2 {[%clk 0:02:59]}  Bg7 {[%clk 0:02:58]} 5. Be2 {[%clk 0:02:56]}  O-O {[%clk 0:02:58]} 6. O-O {[%clk 0:02:56]}  c5 {[%clk 0:02:58]} 7. a4 {[%clk 0:02:54]}  Nc6 {[%clk 0:02:58]} 8. Ne5 {[%clk 0:02:51]}  Qc7 {[%clk 0:02:55]} 9. Nxc6 {[%clk 0:02:50]}  bxc6 {[%clk 0:02:55]} 10. f4 {[%clk 0:02:47]}  d4 {[%clk 0:02:51]} 11. Na3 {[%clk 0:02:36]}  Nd5 {[%clk 0:02:46]} 12. Nc4 {[%clk 0:02:29]}  Rd8 {[%clk 0:02:41]} 13. Qc1 {[%clk 0:02:25]}  Ba6 {[%clk 0:02:39]} 14. g3 {[%clk 0:01:49]}  dxe3 {[%clk 0:02:25]} 15. Bxg7 {[%clk 0:01:41]}  Kxg7 {[%clk 0:02:25]} 16. dxe3 {[%clk 0:01:36]}  Nf6 {[%clk 0:02:23]} 17. Qa3 {[%clk 0:01:16]}  Rd5 {[%clk 0:02:17]} 18. Bd3 {[%clk 0:01:06]}  Rad8 {[%clk 0:02:12]} 19. e4 {[%clk 0:01:01]}  Rd4 {[%clk 0:01:59]} 20. Qxc5 {[%clk 0:00:55]}  Bxc4 {[%clk 0:01:55]} 21. bxc4 {[%clk 0:00:33]}  Nxe4 {[%clk 0:01:52]} 22. Bxe4 {[%clk 0:00:20]}  Rxe4 {[%clk 0:01:52]} 23. Rae1 {[%clk 0:00:21]}  Rdd4 {[%clk 0:01:42]} 24. Rxe4 {[%clk 0:00:18]}  Rxe4 {[%clk 0:01:42]} 25. Rd1 {[%clk 0:00:18]}  Qb6 {[%clk 0:01:39]} 26. Qxb6 {[%clk 0:00:17]}  axb6 {[%clk 0:01:39]} 27. Rb1 {[%clk 0:00:16]}  Rxc4 {[%clk 0:01:37]} 28. Rxb6 {[%clk 0:00:17]}  Rxc2 {[%clk 0:01:36]} 29. Rb7 {[%clk 0:00:12]}  Kf6 {[%clk 0:01:28]} 30. a5 {[%clk 0:00:11]}  Ke6 {[%clk 0:01:27]} 31. Rb8 {[%clk 0:00:08]}  Ra2 {[%clk 0:01:26]} 32. Ra8 {[%clk 0:00:04]}  Kf5 {[%clk 0:01:20]} 33. Rc8 {[%clk 0:00:02]}  Rxa5 {[%clk 0:01:14]} 34. Rxc6 {[%clk 0:00:01]}  Kg4 {[%clk 0:01:14]} 0-1


[Site "https://www.chess.com"]